[Event "POL-chT 1 Liga 2019"]
[Site "Dzwirzyno"]
[Date "2019.09.10"]
[Round "4.18"]
[White "Moscicka, Pola"]
[Black "Malicka, Maria"]
[Result "1/2-1/2"]
[ECO "C60"]
[WhiteElo "1994"]
[BlackElo "2095"]
[Annotator "NA"]
[PlyCount "78"]
[EventDate "2019.09.07"]
[EventType "team-tourn"]
[EventCountry "POL"]
[SourceTitle "playchess.com"]
[Source "ChessBase"]
[SourceQuality "1"]
[TimeControl "40/5400+30:1800+30"]

1. e4 {[%emt 0:00:00]} e5 {[%emt 0:00:00]} 2. Nf3 {[%emt 0:00:00]} Nc6 {[%emt 0:00:00]} 3. Bb5 {[%emt 0:00:00]} g6 {[%emt 0:00:00]} 4. d3 {[%emt 0:00:12]} Bg7 {[%emt 0:00:17]} 5. O-O {[%emt 0:00:27]} Nge7 {[%emt 0:00:48]} 6. c3 {[%emt 0:03:27]} a6 {[%emt 0:01:45]} 7. Ba4 {[%emt 0:00:27]} O-O {[%emt 0:00:22]} 8. Re1 {[%emt 0:01:21]} d6 {[%emt 0:01:25]} 9. Nbd2 {[%emt 0:03:48]} h6 {[%emt 0:04:23]} 10. Nf1 {[%emt 0:03:23]} f5 {[%emt 0:06:42]} 11. exf5 {[%emt 0:04:01]} Nxf5 {[%emt 0:10:43]} 12. h3 {[%emt 0:03:16]} Kh7 {[%emt 0:07:52]} 13. Ne3 {[%emt 0:03:32]} Nh4 {[%emt 0:04:10]} 14. Nxh4 {[%emt 0:05:24]} Qxh4 {[%emt 0:00:06]} 15. Rf1 {[%emt 0:00:15]} Ne7 {[%emt 0:05:00]} 16. Bc2 {[%emt 0:07:49]} Be6 {[%emt 0:03:00]} 17. Qe2 {[%emt 0:02:15]} Rae8 {[%emt 0:03:15]} 18. Bb3 {[%emt 0:04:52]} d5 {[%emt 0:03:57]} 19. a4 {[%emt 0:04:27]} c6 {[%emt 0:04:47]} 20. a5 {[%emt 0:02:59]} Bd7 {[%emt 0:00:47]} 21. Ng4 {[%emt 0:05:31]} Nf5 {[%emt 0:06:44]} 22. Be3 {[%emt 0:08:54]} h5 {[%emt 0:08:27]} 23. Nh2 {[%emt 0:00:41]} Nxe3 {[%emt 0:00:10]} 24. fxe3 {[%emt 0:02:41]} e4 {[%emt 0:02:00]} 25. Rxf8 {[%emt 0:02:24]} Rxf8 {[%emt 0:03:48]} 26. dxe4 {[%emt 0:01:26]} dxe4 {[%emt 0:00:23]} 27. Rf1 {[%emt 0:00:23]} Qg5 {[%emt 0:02:23]} 28. Kh1 {[%emt 0:04:57]} Rxf1+ {[%emt 0:06:02]} 29. Nxf1 {[%emt 0:01:35]} Qxa5 {[%emt 0:00:30]} 30. g4 {[%emt 0:03:41]} Qg5 {[%emt 0:03:21]} 31. Ng3 {[%emt 0:12:04]} Qh4 {[%emt 0:02:33]} 32. Nxe4 {[%emt 0:01:59]} Qxh3+ {[%emt 0:03:10]} 33. Kg1 {[%emt 0:00:38]} Qh4 {[%emt 0:02:43]} 34. Qf3 {[%emt 0:01:33]} Bxg4 35. Qf4 {[%emt 0:00:51]} Qe1+ {[%emt 0:04:30]} 36. Kg2 {[%emt 0:00:34]} Qe2+ {[%emt 0:00:07]} 37. Kg1 {[%emt 0:00:22]} Qe1+ {[%emt 0:01:01]} 38. Kg2 {[%emt 0:00:15]} Qe2+ {[%emt 0:00:56]} 39. Kg1 {[%emt 0:00:53]} Qe1+ {[%emt 0:00:10]} 1/2-1/2

[Event "POL-chT 1 Liga 2019"]
[Site "Dzwirzyno"]
[Date "2019.09.10"]
[Round "4.20"]
[White "Lewtak, Damian"]
[Black "Zezulkin, Jurij"]
[Result "1-0"]
[ECO "D83"]
[WhiteElo "2377"]
[BlackElo "2434"]
[Annotator "NA"]
[PlyCount "207"]
[EventDate "2019.09.07"]
[EventType "team-tourn"]
[EventCountry "POL"]
[SourceTitle "playchess.com"]
[Source "ChessBase"]
[SourceQuality "1"]
[TimeControl "40/5400+30:1800+30"]

1. d4 {[%emt 0:00:00]} Nf6 {[%emt 0:00:00]} 2. c4 {[%emt 0:00:00]} g6 {[%emt 0:00:00]} 3. Nc3 {[%emt 0:00:00]} d5 {[%emt 0:00:00]} 4. Bf4 {[%emt 0:00:05]} Bg7 {[%emt 0:00:00]} 5. e3 {[%emt 0:00:05]} O-O {[%emt 0:01:21]} 6. Rc1 {[%emt 0:00:12]} c5 {[%emt 0:04:41]} 7. dxc5 {[%emt 0:00:14]} Qa5 {[%emt 0:07:43]} 8. cxd5 {[%emt 0:01:02]} Ne4 {[%emt 0:04:50]} 9. Nge2 {[%emt 0:00:45]} Na6 {[%emt 0:26:09]} 10. Qa4 {[%emt 0:11:12]} Qxa4 {[%emt 0:03:57]} 11. Nxa4 {[%emt 0:00:44]} Nb4 {[%emt 0:01:22]} 12. Nec3 {[%emt 0:00:47]} Nxc3 {[%emt 0:00:45]} 13. Nxc3 {[%emt 0:00:10]} Bxc3+ {[%emt 0:00:16]} 14. Rxc3 {[%emt 0:01:17]} Nxd5 {[%emt 0:00:08]} 15. Rc1 {[%emt 0:00:36]} Nxf4 {[%emt 0:00:50]} 16. exf4 {[%emt 0:00:06]} Be6 {[%emt 0:18:37]} 17. Bc4 {[%emt 0:17:39]} Rac8 {[%emt 0:01:30]} 18. Kd2 {[%emt 0:00:13]} Rxc5 {[%emt 0:01:38]} 19. Bxe6 {[%emt 0:00:37]} Rxc1 {[%emt 0:00:41]} 20. Rxc1 {[%emt 0:04:57]} fxe6 {[%emt 0:00:10]} 21. Rc7 {[%emt 0:01:01]} Rxf4 {[%emt 0:00:07]} 22. f3 {[%emt 0:00:05]} Rb4 {[%emt 0:06:24]} 23. Kc3 {[%emt 0:00:05]} Rb6 {[%emt 0:00:08]} 24. Rxe7 {[%emt 0:00:06]} a5 {[%emt 0:01:57]} 25. Rc7 {[%emt 0:01:03]} h5 {[%emt 0:08:57]} 26. a4 {[%emt 0:02:17]} Kf8 {[%emt 0:01:16]} 27. Rc5 {[%emt 0:08:36]} Ra6 {[%emt 0:00:03]} 28. Kc4 {[%emt 0:00:34]} Ke8 {[%emt 0:00:30]} 29. Kb5 {[%emt 0:06:09]} Kd7 {[%emt 0:07:08]} 30. Rg5 {[%emt 0:00:47]} Kc7 {[%emt 0:00:08]} 31. b3 {[%emt 0:02:29]} Rb6+ {[%emt 0:01:38]} 32. Kc4 {[%emt 0:00:36]} Rc6+ {[%emt 0:01:11]} 33. Kd4 {[%emt 0:01:09]} Rb6 {[%emt 0:00:04]} 34. Kc3 {[%emt 0:00:19]} Rc6+ {[%emt 0:00:03]} 35. Kb2 {[%emt 0:00:11]} e5 {[%emt 0:00:07]} 36. Rxe5 {[%emt 0:00:09]} b6 {[%emt 0:00:03]} 37. Rd5 {[%emt 0:00:51]} Re6 {[%emt 0:03:14]} 38. Kc3 {[%emt 0:00:12]} Kc6 {[%emt 0:00:13]} 39. Rg5 {[%emt 0:00:18]} Rd6 {[%emt 0:00:20]} 40. Kc4 {[%emt 0:00:00]} Rf6 {[%emt 0:00:00]} 41. Kd3 {[%emt 0:04:59]} Kd7 {[%emt 0:16:01]} 42. Ke4 {[%emt 0:01:24]} Rc6 {[%emt 0:01:56]} 43. f4 {[%emt 0:01:16]} Rc3 {[%emt 0:03:06]} 44. Rd5+ {[%emt 0:15:57]} Ke7 {[%emt 0:07:55]} 45. Rb5 {[%emt 0:00:11]} Rc2 {[%emt 0:03:26]} 46. Kf3 {[%emt 0:00:10]} Rc3+ {[%emt 0:00:29]} 47. Kf2 {[%emt 0:00:09]} Rc6 {[%emt 0:00:27]} 48. Kg3 {[%emt 0:00:13]} Kf7 {[%emt 0:01:33]} 49. Kh4 {[%emt 0:00:25]} Kf6 {[%emt 0:00:46]} 50. h3 {[%emt 0:00:32]} Rd6 {[%emt 0:00:04]} 51. g4 {[%emt 0:00:54]} hxg4 {[%emt 0:00:01]} 52. hxg4 {[%emt 0:00:06]} Rc6 {[%emt 0:00:07]} 53. Kg3 {[%emt 0:00:28]} Rc3+ {[%emt 0:00:22]} 54. Kf2 {[%emt 0:00:28]} Rc6 {[%emt 0:00:03]} 55. Kf3 {[%emt 0:00:26]} Ke6 {[%emt 0:00:34]} 56. Ke4 {[%emt 0:00:24]} Ke7 {[%emt 0:01:25]} 57. Re5+ {[%emt 0:01:19]} Kf7 {[%emt 0:00:25]} 58. g5 {[%emt 0:02:24]} Rc3 {[%emt 0:00:19]} 59. Rb5 {[%emt 0:00:09]} Rc6 {[%emt 0:00:03]} 60. f5 {[%emt 0:00:47]} gxf5+ {[%emt 0:00:01]} 61. Rxf5+ {[%emt 0:00:12]} Ke7 {[%emt 0:01:02]} 62. Rf6 {[%emt 0:02:53]} Rc5 {[%emt 0:00:04]} 63. Rxb6 {[%emt 0:00:09]} Rxg5 {[%emt 0:00:04]} 64. Rb5 {[%emt 0:00:59]} Rg3 {[%emt 0:00:59]} 65. Kd4 {[%emt 0:00:14]} Kd6 {[%emt 0:01:04]} 66. Kc4 {[%emt 0:00:06]} Rg4+ {[%emt 0:00:18]} 67. Kc3 {[%emt 0:00:06]} Rg3+ {[%emt 0:00:04]} 68. Kb2 {[%emt 0:00:07]} Kc6 {[%emt 0:00:26]} 69. Rxa5 {[%emt 0:00:07]} Kb6 {[%emt 0:00:04]} 70. Ra8 {[%emt 0:00:26]} Kb7 {[%emt 0:00:29]} 71. Rh8 {[%emt 0:00:07]} Kb6 {[%emt 0:00:04]} 72. Rc8 {[%emt 0:00:08]} Ka5 {[%emt 0:01:17]} 73. Rc5+ {[%emt 0:00:52]} Kb6 {[%emt 0:00:02]} 74. Rc3 {[%emt 0:00:06]} Rg2+ {[%emt 0:00:26]} 75. Ka3 {[%emt 0:00:14]} Rg1 {[%emt 0:00:11]} 76. Kb4 {[%emt 0:00:24]} Rg4+ {[%emt 0:00:05]} 77. Rc4 {[%emt 0:00:17]} Rg5 {[%emt 0:00:02]} 78. a5+ {[%emt 0:00:21]} Ka6 {[%emt 0:00:16]} 79. Rc6+ {[%emt 0:00:11]} Kb7 {[%emt 0:00:03]} 80. Rc5 {[%emt 0:00:07]} Rg3 {[%emt 0:00:12]} 81. Ka4 {[%emt 0:00:11]} Rh3 {[%emt 0:00:20]} 82. b4 {[%emt 0:00:11]} Rh7 {[%emt 0:00:49]} 83. Kb5 {[%emt 0:00:13]} Ka7 {[%emt 0:00:06]} 84. a6 {[%emt 0:00:29]} Rh6 {[%emt 0:00:18]} 85. Rc7+ {[%emt 0:00:14]} Kb8 {[%emt 0:00:02]} 86. Rc6 {[%emt 0:00:07]} Rh7 {[%emt 0:00:53]} 87. Ka5 {[%emt 0:00:13]} Ka7 {[%emt 0:00:48]} 88. b5 {[%emt 0:00:22]} Rh5 {[%emt 0:02:54]} 89. Rd6 {[%emt 0:00:19]} Rg5 {[%emt 0:00:19]} 90. Rd7+ {[%emt 0:00:14]} Kb8 {[%emt 0:00:07]} 91. Kb6 {[%emt 0:00:32]} Rg6+ {[%emt 0:00:19]} 92. Kc5 {[%emt 0:00:20]} Rg1 {[%emt 0:01:19]} 93. b6 {[%emt 0:01:07]} Rc1+ {[%emt 0:02:19]} 94. Kd6 {[%emt 0:00:16]} Rd1+ {[%emt 0:00:03]} 95. Ke6 {[%emt 0:00:09]} Re1+ {[%emt 0:00:04]} 96. Kf5 {[%emt 0:00:05]} Rf1+ 97. Kg4 {[%emt 0:00:13]} Rg1+ {[%emt 0:00:19]} 98. Kf3 {[%emt 0:00:07]} Rf1+ {[%emt 0:00:05]} 99. Ke2 {[%emt 0:00:04]} Rf8 {[%emt 0:00:04]} 100. Ke3 {[%emt 0:00:07]} Ka8 {[%emt 0:01:31]} 101. Ke4 {[%emt 0:00:00]} Rh8 {[%emt 0:01:28]} 102. Kf5 {[%emt 0:00:00]} Re8 {[%emt 0:00:20]} 103. Rf7 Rd8 {[%emt 0:01:56]} 104. Kg6 {[%emt 0:00:36]} 1-0

[Event "POL-chT 1 Liga 2019"]
[Site "Dzwirzyno"]
[Date "2019.09.10"]
[Round "4.22"]
[White "Reza, Wojciech"]
[Black "Jaroch, Karol"]
[Result "1/2-1/2"]
[ECO "B54"]
[WhiteElo "2293"]
[BlackElo "2236"]
[Annotator "NA"]
[PlyCount "32"]
[EventDate "2019.09.07"]
[EventType "team-tourn"]
[EventCountry "POL"]
[SourceTitle "playchess.com"]
[Source "ChessBase"]
[SourceQuality "1"]
[TimeControl "40/5400+30:1800+30"]

1. e4 c5 2. Nf3 d6 3. d4 cxd4 4. Nxd4 Nf6 5. f3 a6 6. c4 g6 7. Be3 {[%emt 0:14:29]} Bg7 {[%emt 0:08:38]} 8. Nc3 {[%emt 0:00:21]} O-O {[%emt 0:00:15]} 9. Be2 {[%emt 0:01:37]} Nc6 {[%emt 0:02:27]} 10. Qd2 {[%emt 0:11:51]} Nxd4 {[%emt 0:07:58]} 11. Bxd4 {[%emt 0:00:29]} Be6 {[%emt 0:05:54]} 12. Rc1 {[%emt 0:11:01]} Rc8 {[%emt 0:01:41]} 13. b3 {[%emt 0:00:55]} Qa5 {[%emt 0:08:22]} 14. Be3 {[%emt 0:09:10]} b5 {[%emt 0:18:03]} 15. Nd5 {[%emt 0:02:42]} Qxd2+ {[%emt 0:00:20]} 16. Kxd2 {[%emt 0:00:57]} Nxd5 {[%emt 0:00:31]} 1/2-1/2

[Event "POL-chT 1 Liga 2019"]
[Site "Dzwirzyno"]
[Date "2019.09.10"]
[Round "4.23"]
[White "Samborski, Henryk"]
[Black "Renkowski, Piotr"]
[Result "0-1"]
[ECO "C20"]
[WhiteElo "2098"]
[BlackElo "2179"]
[Annotator "NA"]
[PlyCount "100"]
[EventDate "2019.09.07"]
[EventType "team-tourn"]
[EventCountry "POL"]
[SourceTitle "playchess.com"]
[Source "ChessBase"]
[SourceQuality "1"]
[TimeControl "40/5400+30:1800+30"]

1. e4 {[%emt 0:00:00]} e5 {[%emt 0:00:00]} 2. d3 {[%emt 0:00:00]} Nc6 {[%emt 0:00:32]} 3. g3 {[%emt 0:00:00]} d6 {[%emt 0:03:59]} 4. Bg2 {[%emt 0:00:27]} Be7 {[%emt 0:00:27]} 5. Nf3 {[%emt 0:00:48]} Bg4 {[%emt 0:00:20]} 6. h3 {[%emt 0:01:17]} Bh5 {[%emt 0:02:11]} 7. c3 {[%emt 0:00:46]} Nf6 {[%emt 0:01:15]} 8. g4 {[%emt 0:06:15]} Bg6 {[%emt 0:00:06]} 9. Nh4 {[%emt 0:00:10]} Nd7 {[%emt 0:06:16]} 10. Nf5 {[%emt 0:04:49]} Bxf5 {[%emt 0:00:15]} 11. gxf5 {[%emt 0:00:40]} Bg5 {[%emt 0:01:48]} 12. O-O {[%emt 0:09:22]} Bxc1 {[%emt 0:14:30]} 13. Qxc1 {[%emt 0:00:04]} g5 {[%emt 0:00:23]} 14. fxg6 {[%emt 0:01:20]} hxg6 {[%emt 0:01:39]} 15. f4 {[%emt 0:01:04]} Qe7 {[%emt 0:03:34]} 16. b4 {[%emt 0:03:57]} O-O-O {[%emt 0:09:05]} 17. b5 {[%emt 0:02:34]} Ncb8 {[%emt 0:02:45]} 18. Na3 {[%emt 0:09:32]} Nc5 {[%emt 0:02:25]} 19. Qe3 {[%emt 0:07:23]} Ne6 {[%emt 0:02:33]} 20. fxe5 {[%emt 0:04:20]} dxe5 {[%emt 0:00:07]} 21. Nc4 {[%emt 0:00:11]} Nf4 {[%emt 0:00:52]} 22. d4 {[%emt 0:02:04]} Qg5 {[%emt 0:03:23]} 23. Rxf4 {[%emt 0:00:32]} Qxf4 {[%emt 0:06:18]} 24. Qxf4 {[%emt 0:00:51]} exf4 {[%emt 0:00:06]} 25. e5 {[%emt 0:09:31]} Rh4 {[%emt 0:12:06]} 26. a4 {[%emt 0:02:33]} Rdh8 {[%emt 0:02:01]} 27. a5 {[%emt 0:05:54]} Rxh3 {[%emt 0:05:32]} 28. Bxh3+ {[%emt 0:00:31]} Rxh3 {[%emt 0:00:01]} 29. Rc1 {[%emt 0:05:11]} Nd7 {[%emt 0:03:33]} 30. Kf2 {[%emt 0:05:38]} Nf8 {[%emt 0:03:38]} 31. b6 {[%emt 0:00:53]} axb6 {[%emt 0:00:05]} 32. axb6 {[%emt 0:00:07]} Ne6 {[%emt 0:01:35]} 33. bxc7 {[%emt 0:03:58]} Kxc7 {[%emt 0:00:40]} 34. Nd6 {[%emt 0:02:09]} Ng5 {[%emt 0:02:50]} 35. Rg1 {[%emt 0:01:04]} Rf3+ {[%emt 0:00:15]} 36. Ke2 {[%emt 0:00:16]} Re3+ {[%emt 0:00:31]} 37. Kd1 {[%emt 0:00:07]} f3 {[%emt 0:01:43]} 38. Kd2 {[%emt 0:02:39]} Re2+ {[%emt 0:00:48]} 39. Kd3 {[%emt 0:00:01]} Nh3 {[%emt 0:00:08]} 40. Rf1 {[%emt 0:00:00]} Nf4+ {[%emt 0:00:00]} 41. Kc4 {[%emt 0:06:15]} f2 {[%emt 0:01:00]} 42. Ne8+ {[%emt 0:11:07]} Kc6 {[%emt 0:11:05]} 43. Nf6 {[%emt 0:03:57]} b5+ {[%emt 0:00:06]} 44. Kb3 {[%emt 0:00:07]} Nd3 {[%emt 0:00:57]} 45. Ng4 {[%emt 0:04:12]} Re1 {[%emt 0:06:12]} 46. Rxf2 {[%emt 0:03:54]} Nxf2 {[%emt 0:00:14]} 47. Nxf2 {[%emt 0:00:02]} g5 {[%emt 0:00:20]} 48. Ng4 {[%emt 0:00:18]} Rg1 {[%emt 0:01:14]} 49. Nf6 {[%emt 0:00:54]} g4 {[%emt 0:00:48]} 50. c4 {[%emt 0:00:06]} bxc4+ {[%emt 0:00:33]} 0-1

[Event "POL-chT 1 Liga 2019"]
[Site "Dzwirzyno"]
[Date "2019.09.10"]
[Round "4.24"]
[White "Jablonska, Sabina"]
[Black "Worek, Joanna"]
[Result "1/2-1/2"]
[ECO "B31"]
[WhiteElo "1928"]
[BlackElo "2308"]
[Annotator "NA"]
[PlyCount "89"]
[EventDate "2019.09.07"]
[EventType "team-tourn"]
[EventCountry "POL"]
[SourceTitle "playchess.com"]
[Source "ChessBase"]
[SourceQuality "1"]
[TimeControl "40/5400+30:1800+30"]

1. e4 {[%emt 0:00:00]} c5 {[%emt 0:00:00]} 2. Nf3 {[%emt 0:00:00]} Nc6 {[%emt 0:00:00]} 3. Bb5 {[%emt 0:00:01]} g6 {[%emt 0:00:31]} 4. Bxc6 {[%emt 0:00:30]} dxc6 {[%emt 0:00:05]} 5. O-O {[%emt 0:02:18]} Bg7 {[%emt 0:00:04]} 6. h3 {[%emt 0:01:57]} e5 {[%emt 0:01:15]} 7. d3 {[%emt 0:03:37]} Qe7 {[%emt 0:00:07]} 8. Re1 {[%emt 0:03:27]} f6 {[%emt 0:00:30]} 9. c3 {[%emt 0:10:31]} Nh6 {[%emt 0:01:21]} 10. d4 {[%emt 0:08:04]} cxd4 {[%emt 0:01:54]} 11. cxd4 {[%emt 0:00:11]} Nf7 {[%emt 0:01:22]} 12. Be3 {[%emt 0:07:41]} O-O {[%emt 0:02:05]} 13. Nbd2 {[%emt 0:06:53]} b6 {[%emt 0:09:42]} 14. Rc1 {[%emt 0:03:50]} Bb7 {[%emt 0:00:34]} 15. Qb3 {[%emt 0:04:05]} Kh8 {[%emt 0:10:18]} 16. a4 {[%emt 0:11:12]} Rab8 {[%emt 0:18:21]} 17. Qc2 {[%emt 0:05:58]} exd4 {[%emt 0:04:24]} 18. Bxd4 {[%emt 0:00:44]} c5 {[%emt 0:00:05]} 19. Bc3 {[%emt 0:00:46]} Rbd8 {[%emt 0:04:17]} 20. Nc4 {[%emt 0:04:13]} Qe6 {[%emt 0:00:47]} 21. b3 {[%emt 0:01:14]} Rfe8 {[%emt 0:07:06]} 22. Ncd2 {[%emt 0:06:48]} Ba6 {[%emt 0:06:04]} 23. Qb2 {[%emt 0:04:09]} Bd3 {[%emt 0:02:48]} 24. b4 {[%emt 0:01:41]} Kg8 {[%emt 0:01:14]} 25. bxc5 {[%emt 0:02:16]} bxc5 {[%emt 0:00:06]} 26. Qa3 {[%emt 0:00:57]} Qc6 {[%emt 0:07:50]} 27. Ba5 {[%emt 0:01:29]} Rd7 {[%emt 0:01:35]} 28. Rxc5 {[%emt 0:02:02]} Qa6 {[%emt 0:00:06]} 29. Bb4 {[%emt 0:02:33]} Qb7 {[%emt 0:07:16]} 30. Rc3 {[%emt 0:02:10]} Ba6 {[%emt 0:00:55]} 31. Bc5 {[%emt 0:00:53]} Red8 {[%emt 0:00:28]} 32. Nf1 {[%emt 0:00:58]} Rd1 {[%emt 0:01:48]} 33. Rc1 {[%emt 0:00:08]} R1d3 {[%emt 0:01:02]} 34. Qb4 {[%emt 0:00:50]} Qa8 {[%emt 0:05:46]} 35. Ne3 {[%emt 0:02:11]} Bb7 {[%emt 0:00:40]} 36. Rc4 {[%emt 0:00:39]} Nd6 {[%emt 0:01:03]} 37. Bxd6 {[%emt 0:00:15]} R3xd6 {[%emt 0:00:04]} 38. Nf1 {[%emt 0:00:47]} R6d7 {[%emt 0:02:19]} 39. Ng3 {[%emt 0:00:25]} Qb8 {[%emt 0:00:36]} 40. Rcc1 {[%emt 0:00:00]} h5 {[%emt 0:00:00]} 41. Nh4 {[%emt 0:10:09]} Kh7 {[%emt 0:03:30]} 42. Qb1 {[%emt 0:01:54]} Qf4 {[%emt 0:05:44]} 43. Nf3 {[%emt 0:03:16]} Re8 {[%emt 0:07:46]} 44. h4 {[%emt 0:01:49]} Rde7 {[%emt 0:02:49]} 45. Rc4 {[%emt 0:07:51]} 1/2-1/2

[Event "POL-chT 1 Liga 2019"]
[Site "Dzwirzyno"]
[Date "2019.09.10"]
[Round "4.28"]
[White "Nowak, Mikolaj"]
[Black "Bartel, Michal"]
[Result "0-1"]
[ECO "A65"]
[WhiteElo "2262"]
[BlackElo "2291"]
[Annotator "NA"]
[PlyCount "98"]
[EventDate "2019.09.07"]
[EventType "team-tourn"]
[EventCountry "POL"]
[SourceTitle "playchess.com"]
[Source "ChessBase"]
[SourceQuality "1"]
[TimeControl "40/5400+30:1800+30"]

1. d4 {[%emt 0:00:50]} Nf6 {[%emt 0:00:00]} 2. c4 {[%emt 0:00:13]} c5 {[%emt 0:00:00]} 3. d5 {[%emt 0:00:09]} e6 {[%emt 0:00:00]} 4. Nc3 {[%emt 0:00:05]} exd5 {[%emt 0:00:00]} 5. cxd5 {[%emt 0:00:06]} d6 {[%emt 0:00:00]} 6. e4 {[%emt 0:00:09]} g6 {[%emt 0:00:00]} 7. Be2 {[%emt 0:00:08]} Bg7 {[%emt 0:00:04]} 8. Be3 {[%emt 0:00:09]} O-O {[%emt 0:00:26]} 9. Nf3 {[%emt 0:00:35]} Bg4 {[%emt 0:04:15]} 10. O-O {[%emt 0:07:56]} Re8 {[%emt 0:02:50]} 11. Nd2 {[%emt 0:07:27]} Bxe2 {[%emt 0:00:28]} 12. Qxe2 {[%emt 0:00:29]} Nbd7 {[%emt 0:00:22]} 13. f3 {[%emt 0:11:50]} a6 {[%emt 0:05:04]} 14. a4 {[%emt 0:00:21]} Rb8 {[%emt 0:01:24]} 15. Nc4 {[%emt 0:09:27]} Nb6 {[%emt 0:04:31]} 16. Nxb6 {[%emt 0:04:50]} Qxb6 {[%emt 0:00:08]} 17. a5 {[%emt 0:04:31]} Qd8 {[%emt 0:02:01]} 18. Kh1 {[%emt 0:09:36]} Nd7 {[%emt 0:01:36]} 19. Bf4 {[%emt 0:03:47]} Ne5 {[%emt 0:03:15]} 20. Nd1 {[%emt 0:03:35]} f5 {[%emt 0:01:29]} 21. exf5 {[%emt 0:03:07]} gxf5 {[%emt 0:00:32]} 22. Qc2 {[%emt 0:02:46]} Qf6 {[%emt 0:03:51]} 23. Nf2 {[%emt 0:02:35]} Ng6 {[%emt 0:01:15]} 24. Bc1 {[%emt 0:01:54]} Qd4 {[%emt 0:06:35]} 25. Qd1 {[%emt 0:03:14]} Qxd1 {[%emt 0:01:22]} 26. Rxd1 {[%emt 0:02:37]} Re2 {[%emt 0:01:15]} 27. Nh3 {[%emt 0:04:14]} Rbe8 {[%emt 0:01:43]} 28. Ng1 {[%emt 0:04:00]} Rf2 {[%emt 0:10:09]} 29. Ra3 {[%emt 0:03:03]} c4 {[%emt 0:00:18]} 30. Ra4 {[%emt 0:01:04]} Rc2 {[%emt 0:00:30]} 31. Rb4 {[%emt 0:01:03]} f4 {[%emt 0:05:19]} 32. Rxb7 {[%emt 0:01:20]} Bd4 33. b3 {[%emt 0:03:26]} c3 {[%emt 0:03:51]} 34. Rc7 {[%emt 0:01:08]} Re5 {[%emt 0:05:37]} 35. Ba3 {[%emt 0:02:13]} Rxd5 {[%emt 0:00:19]} 36. Bb4 {[%emt 0:00:49]} Rd2 {[%emt 0:06:14]} 37. Rf1 {[%emt 0:01:36]} Be3 {[%emt 0:03:09]} 38. Rxc3 {[%emt 0:00:52]} Rd1 {[%emt 0:00:17]} 39. Rc8+ {[%emt 0:00:43]} Kf7 {[%emt 0:01:28]} 40. Rc7+ {[%emt 0:00:00]} Ke6 {[%emt 0:00:00]} 41. Be1 {[%emt 0:03:56]} Rb1 {[%emt 0:00:36]} 42. Rc2 {[%emt 0:00:52]} Rdd1 {[%emt 0:00:03]} 43. Re2 {[%emt 0:00:11]} d5 {[%emt 0:00:06]} 44. Nh3 {[%emt 0:01:07]} d4 {[%emt 0:00:11]} 45. g3 {[%emt 0:01:34]} Kf5 {[%emt 0:03:24]} 46. Nf2 {[%emt 0:02:07]} Bxf2 {[%emt 0:00:11]} 47. Rfxf2 {[%emt 0:02:31]} Rxe1+ {[%emt 0:00:05]} 48. Kg2 {[%emt 0:00:06]} Rg1+ {[%emt 0:00:25]} 49. Kh3 {[%emt 0:00:02]} fxg3 {[%emt 0:00:08]} 0-1

[Event "POL-chT 1 Liga 2019"]
[Site "Dzwirzyno"]
[Date "2019.09.10"]
[Round "4.29"]
[White "Sliwerski, Radoslaw"]
[Black "Tomaszewski, Kacper"]
[Result "1/2-1/2"]
[ECO "A56"]
[WhiteElo "2078"]
[BlackElo "2363"]
[Annotator "NA"]
[PlyCount "59"]
[EventDate "2019.09.07"]
[EventType "team-tourn"]
[EventCountry "POL"]
[SourceTitle "playchess.com"]
[Source "ChessBase"]
[SourceQuality "1"]
[TimeControl "40/5400+30:1800+30"]

1. d4 {[%emt 0:00:00]} Nf6 {[%emt 0:00:31]} 2. c4 {[%emt 0:00:00]} c5 {[%emt 0:00:04]} 3. Nf3 {[%emt 0:00:01]} cxd4 {[%emt 0:00:22]} 4. Nxd4 {[%emt 0:00:02]} e5 {[%emt 0:00:07]} 5. Nb5 {[%emt 0:00:02]} d5 {[%emt 0:00:05]} 6. cxd5 {[%emt 0:00:16]} Bc5 {[%emt 0:00:05]} 7. N5c3 {[%emt 0:00:04]} O-O {[%emt 0:00:43]} 8. g3 {[%emt 0:00:03]} Ng4 {[%emt 0:02:23]} 9. e3 {[%emt 0:00:11]} f5 {[%emt 0:00:06]} 10. h3 {[%emt 0:00:19]} Nf6 {[%emt 0:00:26]} 11. a3 {[%emt 0:00:02]} e4 {[%emt 0:03:40]} 12. b4 {[%emt 0:00:09]} Bd6 {[%emt 0:00:04]} 13. Nd2 {[%emt 0:03:48]} Be5 {[%emt 0:03:13]} 14. Bb2 {[%emt 0:02:05]} Bxc3 {[%emt 0:12:16]} 15. Bxc3 {[%emt 0:00:02]} Nxd5 {[%emt 0:00:14]} 16. Bc4 {[%emt 0:03:29]} Be6 {[%emt 0:01:27]} 17. Nb3 {[%emt 0:06:05]} Nf4 {[%emt 0:17:28]} 18. Bxe6+ {[%emt 0:03:18]} Nxe6 {[%emt 0:00:08]} 19. Qxd8 {[%emt 0:00:35]} Rxd8 {[%emt 0:00:12]} 20. Rd1 {[%emt 0:00:24]} Nc6 {[%emt 0:01:15]} 21. Ke2 {[%emt 0:00:44]} Kf7 {[%emt 0:12:51]} 22. h4 {[%emt 0:00:59]} g6 {[%emt 0:00:34]} 23. f3 {[%emt 0:02:59]} exf3+ {[%emt 0:00:56]} 24. Kxf3 {[%emt 0:01:53]} Ne7 {[%emt 0:00:27]} 25. e4 {[%emt 0:03:16]} Rac8 {[%emt 0:00:05]} 26. Be5 {[%emt 0:02:36]} fxe4+ {[%emt 0:09:08]} 27. Kxe4 {[%emt 0:00:10]} Rc4+ {[%emt 0:00:02]} 28. Kf3 {[%emt 0:01:26]} Nc6 {[%emt 0:00:26]} 29. Ba1 {[%emt 0:01:38]} Ncd4+ {[%emt 0:05:06]} 30. Ke4 1/2-1/2